[Event "*** SCC Grand Prix: Titled Tuesday Blitz"]
[Site "Chess.com"]
[Date "2020.10.06"]
[Round "1"]
[White "Malysch"]
[Black "bocah_sakit"]
[Result "0-1"]
[WhiteElo "2426"]
[BlackElo "2826"]
[TimeControl "180+1"]
[EndTime "10:04:10 PDT"]
[Termination "bocah_sakit won by resignation"]

1. d4 {[%clk 0:02:59.3]} 1... Nf6 {[%clk 0:02:59.8]} 2. c4 {[%clk 0:02:59.3]}
2... g6 {[%clk 0:02:59.7]} 3. g3 {[%clk 0:02:58.9]} 3... Bg7 {[%clk 0:03:00.2]}
4. Bg2 {[%clk 0:02:59.2]} 4... O-O {[%clk 0:03:01.1]} 5. Nf3 {[%clk 0:02:59.3]}
5... d6 {[%clk 0:03:02]} 6. O-O {[%clk 0:02:59.4]} 6... Nc6 {[%clk 0:03:02.6]}
7. Nc3 {[%clk 0:02:59.5]} 7... e5 {[%clk 0:03:03.1]} 8. d5 {[%clk 0:02:59.1]}
8... Nb8 {[%clk 0:03:02.7]} 9. e4 {[%clk 0:02:57.9]} 9... a5 {[%clk 0:03:03.1]}
10. Ne1 {[%clk 0:02:57.8]} 10... Na6 {[%clk 0:03:02.3]} 11. Nd3 {[%clk
0:02:57.8]} 11... Nb4 {[%clk 0:03:01.4]} 12. b3 {[%clk 0:02:34.8]} 12... Nd7
{[%clk 0:02:56.8]} 13. a3 {[%clk 0:02:31.9]} 13... Nxd3 {[%clk 0:02:54.6]} 14.
Qxd3 {[%clk 0:02:32.8]} 14... Nc5 {[%clk 0:02:55.3]} 15. Qc2 {[%clk 0:02:32.8]}
15... f5 {[%clk 0:02:53.4]} 16. Be3 {[%clk 0:02:17.2]} 16... b6 {[%clk
0:02:44.9]} 17. b4 {[%clk 0:02:14.7]} 17... Na6 {[%clk 0:02:39.1]} 18. Rfb1
{[%clk 0:01:59.8]} 18... axb4 {[%clk 0:02:34.6]} 19. axb4 {[%clk 0:01:30.3]}
19... Nxb4 {[%clk 0:02:34.9]} 20. Qb3 {[%clk 0:01:26]} 20... Rxa1 {[%clk
0:02:31.6]} 21. Rxa1 {[%clk 0:01:26.9]} 21... Nd3 {[%clk 0:02:31.4]} 22. Nb5
{[%clk 0:01:25.5]} 22... fxe4 {[%clk 0:02:27.5]} 23. Ra7 {[%clk 0:01:19.9]}
23... Rf7 {[%clk 0:02:24]} 24. Nxc7 {[%clk 0:01:03.5]} 24... Rxc7 {[%clk
0:02:14.7]} 25. Bxb6 {[%clk 0:01:03]} 25... Rxa7 {[%clk 0:02:15]} 0-1

[Event "*** SCC Grand Prix: Titled Tuesday Blitz"]
[Site "Chess.com"]
[Date "2020.10.06"]
[Round "1"]
[White "JonahWillow"]
[Black "Vamostodorecto"]
[Result "1-0"]
[WhiteElo "2704"]
[BlackElo "2367"]
[TimeControl "180+1"]
[EndTime "10:04:10 PDT"]
[Termination "JonahWillow won by resignation"]

1. e4 {[%clk 0:03:00.9]} 1... e5 {[%clk 0:02:59.2]} 2. Nf3 {[%clk 0:03:01]} 2...
Nc6 {[%clk 0:02:59.5]} 3. Nc3 {[%clk 0:03:00.6]} 3... Nf6 {[%clk 0:02:58.9]} 4.
Bb5 {[%clk 0:03:00.2]} 4... Nd4 {[%clk 0:02:58.4]} 5. Bc4 {[%clk 0:02:59.7]}
5... d5 {[%clk 0:02:57]} 6. Nxd5 {[%clk 0:02:48.8]} 6... Bg4 {[%clk 0:02:47.6]}
7. c3 {[%clk 0:02:44.4]} 7... Nxf3+ {[%clk 0:02:29.2]} 8. gxf3 {[%clk
0:02:45.3]} 8... Bh3 {[%clk 0:02:19.3]} 9. d3 {[%clk 0:02:40.8]} 9... c6 {[%clk
0:02:17.9]} 10. Nxf6+ {[%clk 0:02:22.9]} 10... Qxf6 {[%clk 0:02:18.8]} 11. f4
{[%clk 0:02:23.7]} 11... Bc5 {[%clk 0:01:49.9]} 12. Qh5 {[%clk 0:02:02.7]} 12...
Bg2 {[%clk 0:01:37.7]} 13. Rg1 {[%clk 0:01:51.5]} 13... g6 {[%clk 0:01:37.7]}
14. Qg4 {[%clk 0:01:41.8]} 1-0

[Event "*** SCC Grand Prix: Titled Tuesday Blitz"]
[Site "Chess.com"]
[Date "2020.10.06"]
[Round "1"]
[White "Aleksey_Sorokin"]
[Black "Oligan22"]
[Result "1-0"]
[WhiteElo "2833"]
[BlackElo "2433"]
[TimeControl "180+1"]
[EndTime "10:04:13 PDT"]
[Termination "Aleksey_Sorokin won by resignation"]

1. d4 {[%clk 0:03:00.9]} 1... Nf6 {[%clk 0:02:59.4]} 2. c4 {[%clk 0:03:00.4]}
2... e6 {[%clk 0:02:59.8]} 3. Nf3 {[%clk 0:02:58.4]} 3... Bb4+ {[%clk
0:02:59.6]} 4. Nbd2 {[%clk 0:02:56.9]} 4... O-O {[%clk 0:02:58.7]} 5. a3 {[%clk
0:02:57.1]} 5... Be7 {[%clk 0:02:56.2]} 6. e4 {[%clk 0:02:57.1]} 6... d5 {[%clk
0:02:52.4]} 7. e5 {[%clk 0:02:56.8]} 7... Nfd7 {[%clk 0:02:52.5]} 8. Bd3 {[%clk
0:02:56.8]} 8... c5 {[%clk 0:02:51.7]} 9. h4 {[%clk 0:02:56.9]} 9... cxd4 {[%clk
0:02:49.1]} 10. Bxh7+ {[%clk 0:02:56.1]} 10... Kxh7 {[%clk 0:02:37.8]} 11. Ng5+
{[%clk 0:02:55.3]} 11... Kh6 {[%clk 0:01:55.5]} 12. Ndf3 {[%clk 0:02:06.1]}
12... Qa5+ {[%clk 0:01:55]} 13. Bd2 {[%clk 0:01:53.9]} 13... Qa6 {[%clk
0:01:54.6]} 14. Nxe6+ {[%clk 0:01:41.6]} 14... Kg6 {[%clk 0:01:47.7]} 15. Qc2+
{[%clk 0:01:15.2]} 15... f5 {[%clk 0:01:45.5]} 16. exf6+ {[%clk 0:01:14.6]}
16... Kxf6 {[%clk 0:01:40.7]} 17. Nxf8 {[%clk 0:01:13.9]} 17... Nxf8 {[%clk
0:01:36.4]} 18. O-O {[%clk 0:01:12]} 18... Qxc4 {[%clk 0:01:35]} 19. Bg5+ {[%clk
0:01:11.2]} 19... Kf7 {[%clk 0:01:34.1]} 20. Ne5+ {[%clk 0:01:10.9]} 1-0

[Event "*** SCC Grand Prix: Titled Tuesday Blitz"]
[Site "Chess.com"]
[Date "2020.10.06"]
[Round "1"]
[White "Alexander_Donchenko"]
[Black "sotochess"]
[Result "1-0"]
[WhiteElo "2760"]
[BlackElo "2399"]
[TimeControl "180+1"]
[EndTime "10:04:35 PDT"]
[Termination "Alexander_Donchenko won by resignation"]

1. Nf3 {[%clk 0:03:00.9]} 1... Nf6 {[%clk 0:02:56.2]} 2. c4 {[%clk 0:03:01.1]}
2... g6 {[%clk 0:02:53.8]} 3. Nc3 {[%clk 0:03:01.3]} 3... Bg7 {[%clk 0:02:53.5]}
4. e4 {[%clk 0:03:01.5]} 4... d6 {[%clk 0:02:53.3]} 5. d4 {[%clk 0:03:01.9]}
5... O-O {[%clk 0:02:53]} 6. Be2 {[%clk 0:03:02.5]} 6... Bg4 {[%clk 0:02:50.9]}
7. Be3 {[%clk 0:03:01.5]} 7... Nfd7 {[%clk 0:02:50.6]} 8. O-O {[%clk 0:02:58]}
8... Bxf3 {[%clk 0:02:50]} 9. Bxf3 {[%clk 0:02:58.1]} 9... Nc6 {[%clk 0:02:50]}
10. d5 {[%clk 0:02:55.6]} 10... Na5 {[%clk 0:02:49.9]} 11. Be2 {[%clk
0:02:54.8]} 11... c5 {[%clk 0:02:49.8]} 12. dxc6 {[%clk 0:02:47.7]} 12... bxc6
{[%clk 0:02:40]} 13. Qd2 {[%clk 0:02:46.8]} 13... c5 {[%clk 0:02:36.1]} 14. Rad1
{[%clk 0:02:44.9]} 14... Nc6 {[%clk 0:02:35.8]} 15. b3 {[%clk 0:02:37.6]} 15...
Re8 {[%clk 0:02:33.2]} 16. Bg4 {[%clk 0:02:36]} 16... Nde5 {[%clk 0:02:26.3]}
17. Bh3 {[%clk 0:02:36.1]} 17... Qa5 {[%clk 0:02:15.5]} 18. Nd5 {[%clk
0:02:32.9]} 18... Qd8 {[%clk 0:02:01.7]} 19. f4 {[%clk 0:02:32.4]} 19... Nd7
{[%clk 0:02:01.6]} 20. e5 {[%clk 0:02:32]} 20... Nb6 {[%clk 0:01:53.2]} 21. e6
{[%clk 0:02:22.8]} 21... f5 {[%clk 0:01:52.4]} 22. g4 {[%clk 0:02:22]} 22...
fxg4 {[%clk 0:01:51.7]} 23. Bxg4 {[%clk 0:02:22.9]} 23... Rf8 {[%clk 0:01:42]}
24. Kh1 {[%clk 0:02:16.5]} 24... Nxd5 {[%clk 0:01:26.7]} 25. cxd5 {[%clk
0:02:16.6]} 25... Nd4 {[%clk 0:01:26.7]} 26. f5 {[%clk 0:02:04.2]} 26... Nxf5
{[%clk 0:01:24.8]} 27. Bxf5 {[%clk 0:02:04.3]} 27... Rxf5 {[%clk 0:01:24.7]} 28.
Rxf5 {[%clk 0:02:04.2]} 28... gxf5 {[%clk 0:01:24.9]} 29. Rg1 {[%clk 0:02:04.6]}
29... Kh8 {[%clk 0:01:17.9]} 30. Rxg7 {[%clk 0:01:52.4]} 30... Kxg7 {[%clk
0:01:17.8]} 31. Bh6+ {[%clk 0:01:52.9]} 31... Kf6 {[%clk 0:01:14.1]} 32. Qc3+
{[%clk 0:01:47.6]} 32... Kg6 {[%clk 0:01:09.3]} 33. Qg7+ {[%clk 0:01:48.5]} 1-0

[Event "*** SCC Grand Prix: Titled Tuesday Blitz"]
[Site "Chess.com"]
[Date "2020.10.06"]
[Round "1"]
[White "Shubinkirill2003"]
[Black "dosto07"]
[Result "0-1"]
[WhiteElo "2654"]
[BlackElo "2364"]
[TimeControl "180+1"]
[EndTime "10:04:47 PDT"]
[Termination "dosto07 won by resignation"]

1. e4 {[%clk 0:01:55.3]} 1... e5 {[%clk 0:02:58.5]} 2. Nf3 {[%clk 0:01:55]} 2...
Nc6 {[%clk 0:02:58.3]} 3. Bb5 {[%clk 0:01:55.4]} 3... a6 {[%clk 0:02:57.7]} 4.
Ba4 {[%clk 0:01:55.5]} 4... Nf6 {[%clk 0:02:57.7]} 5. O-O {[%clk 0:01:55]} 5...
Be7 {[%clk 0:02:57.5]} 6. Re1 {[%clk 0:01:55]} 6... b5 {[%clk 0:02:57.5]} 7. Bb3
{[%clk 0:01:54.6]} 7... O-O {[%clk 0:02:56.9]} 8. c3 {[%clk 0:01:54.6]} 8... d6
{[%clk 0:02:54.8]} 9. h3 {[%clk 0:01:53.9]} 9... Na5 {[%clk 0:02:54.2]} 10. Bc2
{[%clk 0:01:53.5]} 10... c5 {[%clk 0:02:54.6]} 11. d4 {[%clk 0:01:53.8]} 11...
Qc7 {[%clk 0:02:54.6]} 12. d5 {[%clk 0:01:53.7]} 12... Nc4 {[%clk 0:02:52.1]}
13. b3 {[%clk 0:01:53]} 13... Nb6 {[%clk 0:02:45.7]} 14. Nbd2 {[%clk 0:01:52.7]}
14... c4 {[%clk 0:02:38.7]} 15. bxc4 {[%clk 0:01:43.2]} 15... Nxc4 {[%clk
0:02:37]} 16. Nxc4 {[%clk 0:01:42.9]} 16... Qxc4 {[%clk 0:02:37]} 17. Bb2 {[%clk
0:01:42.5]} 17... Bd7 {[%clk 0:02:31.1]} 18. Bd3 {[%clk 0:01:26.5]} 18... Qc7
{[%clk 0:02:28.4]} 19. Rc1 {[%clk 0:01:26.8]} 19... Rac8 {[%clk 0:02:22]} 20. a3
{[%clk 0:01:23.8]} 20... Qa7 {[%clk 0:02:14.2]} 21. Qe2 {[%clk 0:01:21.2]} 21...
Bd8 {[%clk 0:02:05.5]} 22. c4 {[%clk 0:01:11.6]} 22... Bb6 {[%clk 0:01:45.7]}
23. Rf1 {[%clk 0:01:03.5]} 23... Nh5 {[%clk 0:01:43]} 24. Nxe5 {[%clk
0:00:48.7]} 24... Nf4 {[%clk 0:01:38.5]} 25. Qg4 {[%clk 0:00:48.6]} 25... Bxg4
{[%clk 0:01:29.2]} 0-1

[Event "*** SCC Grand Prix: Titled Tuesday Blitz"]
[Site "Chess.com"]
[Date "2020.10.06"]
[Round "1"]
[White "Sashadav97"]
[Black "Zemerovv"]
[Result "1-0"]
[WhiteElo "2586"]
[BlackElo "2283"]
[TimeControl "180+1"]
[EndTime "10:04:47 PDT"]
[Termination "Sashadav97 won by resignation"]

1. d4 {[%clk 0:03:00.9]} 1... g6 {[%clk 0:02:39.5]} 2. e4 {[%clk 0:02:59]} 2...
Bg7 {[%clk 0:02:40.4]} 3. c4 {[%clk 0:02:58.7]} 3... d6 {[%clk 0:02:41.3]} 4.
Nf3 {[%clk 0:02:58.2]} 4... Nc6 {[%clk 0:02:41.1]} 5. d5 {[%clk 0:02:53.9]} 5...
Nb8 {[%clk 0:02:40.2]} 6. Be2 {[%clk 0:02:53.6]} 6... Nf6 {[%clk 0:02:40]} 7.
Nc3 {[%clk 0:02:53.2]} 7... c6 {[%clk 0:02:40]} 8. O-O {[%clk 0:02:52.5]} 8...
O-O {[%clk 0:02:39.9]} 9. Re1 {[%clk 0:02:52.1]} 9... a6 {[%clk 0:02:40]} 10. h3
{[%clk 0:02:50.9]} 10... b5 {[%clk 0:02:39.6]} 11. cxb5 {[%clk 0:02:49.5]} 11...
cxd5 {[%clk 0:02:37.9]} 12. exd5 {[%clk 0:02:50.4]} 12... axb5 {[%clk 0:02:37]}
13. Bxb5 {[%clk 0:02:51.3]} 13... Ba6 {[%clk 0:02:34.7]} 14. a4 {[%clk
0:02:41.2]} 14... Bxb5 {[%clk 0:02:32.9]} 15. Nxb5 {[%clk 0:02:42.1]} 15... Na6
{[%clk 0:02:32.4]} 16. Be3 {[%clk 0:02:31.6]} 16... Re8 {[%clk 0:02:24.2]} 17.
Rc1 {[%clk 0:02:10.1]} 17... Nb4 {[%clk 0:02:23]} 18. Nc7 {[%clk 0:02:06.8]}
18... Rc8 {[%clk 0:02:15.3]} 19. Nxe8 {[%clk 0:02:05.8]} 19... Qxe8 {[%clk
0:02:13.7]} 20. Rxc8 {[%clk 0:01:58.2]} 20... Qxc8 {[%clk 0:02:13.3]} 21. Bd4
{[%clk 0:01:59.1]} 21... Nbxd5 {[%clk 0:02:10]} 22. Bxf6 {[%clk 0:01:57.7]}
22... Nxf6 {[%clk 0:02:09.6]} 23. Rxe7 {[%clk 0:01:58.1]} 23... Bf8 {[%clk
0:02:05.5]} 24. Re2 {[%clk 0:01:55.8]} 24... d5 {[%clk 0:02:05.2]} 25. a5 {[%clk
0:01:42.5]} 25... Qa6 {[%clk 0:02:01.5]} 26. Qd2 {[%clk 0:01:34.3]} 26... Ne4
{[%clk 0:01:56.8]} 27. Qe1 {[%clk 0:01:32.9]} 27... Bc5 {[%clk 0:01:51.9]} 28.
b4 {[%clk 0:01:32.6]} 28... Ba7 {[%clk 0:01:44.2]} 29. Rxe4 {[%clk 0:01:32.2]}
29... dxe4 {[%clk 0:01:42.6]} 30. Qxe4 {[%clk 0:01:33.1]} 30... Qd6 {[%clk
0:01:31]} 31. Qe8+ {[%clk 0:01:31.5]} 31... Kg7 {[%clk 0:01:28.6]} 32. Qe5+
{[%clk 0:01:31.9]} 32... Qxe5 {[%clk 0:01:28.4]} 33. Nxe5 {[%clk 0:01:32.8]}
33... Kf6 {[%clk 0:01:22.3]} 34. Nc6 {[%clk 0:01:32.9]} 1-0

[Event "*** SCC Grand Prix: Titled Tuesday Blitz"]
[Site "Chess.com"]
[Date "2020.10.06"]
[Round "1"]
[White "S2PAc"]
[Black "SaqoChess_Twitch"]
[Result "1-0"]
[WhiteElo "2793"]
[BlackElo "2404"]
[TimeControl "180+1"]
[EndTime "10:04:50 PDT"]
[Termination "S2PAc won by resignation"]

1. d4 {[%clk 0:03:00.9]} 1... d5 {[%clk 0:02:53.9]} 2. Nf3 {[%clk 0:03:00.5]}
2... e6 {[%clk 0:02:54.4]} 3. g3 {[%clk 0:03:00.6]} 3... Nf6 {[%clk 0:02:54.9]}
4. Bg2 {[%clk 0:03:01.1]} 4... Be7 {[%clk 0:02:55.2]} 5. O-O {[%clk 0:03:01.7]}
5... O-O {[%clk 0:02:55.8]} 6. c4 {[%clk 0:03:02.3]} 6... dxc4 {[%clk
0:02:56.7]} 7. Ne5 {[%clk 0:03:02.8]} 7... Nc6 {[%clk 0:02:56.7]} 8. Nxc6 {[%clk
0:03:02.6]} 8... bxc6 {[%clk 0:02:57.6]} 9. Na3 {[%clk 0:03:03.2]} 9... Bxa3
{[%clk 0:02:55.7]} 10. bxa3 {[%clk 0:03:04.1]} 10... Rb8 {[%clk 0:02:54.6]} 11.
Qa4 {[%clk 0:02:58.6]} 11... Rb6 {[%clk 0:02:54.3]} 12. Rd1 {[%clk 0:02:55.6]}
12... c3 {[%clk 0:02:37.4]} 13. Qc2 {[%clk 0:02:43.7]} 13... Ba6 {[%clk
0:02:32.4]} 14. e4 {[%clk 0:02:36.4]} 14... Qd7 {[%clk 0:02:04.6]} 15. Qxc3
{[%clk 0:02:17.1]} 15... e5 {[%clk 0:02:04.1]} 16. Be3 {[%clk 0:02:14.6]} 16...
exd4 {[%clk 0:01:49.4]} 17. Bxd4 {[%clk 0:02:11.2]} 17... Qe6 {[%clk 0:01:50.3]}
18. Rac1 {[%clk 0:01:40.3]} 18... Bb5 {[%clk 0:01:38.4]} 19. Bxb6 {[%clk
0:01:27.5]} 19... axb6 {[%clk 0:01:39.3]} 20. Qb3 {[%clk 0:01:28.2]} 20... Qc8
{[%clk 0:01:30.9]} 21. a4 {[%clk 0:01:27.3]} 21... Be2 {[%clk 0:01:28.7]} 22.
Re1 {[%clk 0:01:24.9]} 22... Ba6 {[%clk 0:01:26.4]} 23. Rxc6 {[%clk 0:01:24.8]}
23... Bb7 {[%clk 0:01:27.1]} 24. Rcc1 {[%clk 0:01:18]} 24... Nd7 {[%clk
0:01:26.7]} 25. Bh3 {[%clk 0:01:14.3]} 25... Nc5 {[%clk 0:01:23]} 26. Bxc8
{[%clk 0:01:12.6]} 26... Nxb3 {[%clk 0:01:23.6]} 27. Bxb7 {[%clk 0:01:13.1]} 1-0

[Event "*** SCC Grand Prix: Titled Tuesday Blitz"]
[Site "Chess.com"]
[Date "2020.10.06"]
[Round "1"]
[White "Viaje"]
[Black "Alexsur1981"]
[Result "0-1"]
[WhiteElo "2386"]
[BlackElo "2742"]
[TimeControl "180+1"]
[EndTime "10:04:51 PDT"]
[Termination "Alexsur1981 won by resignation"]

1. d4 {[%clk 0:03:00.9]} 1... d6 {[%clk 0:02:59.9]} 2. c4 {[%clk 0:03:00.3]}
2... e5 {[%clk 0:02:59.8]} 3. d5 {[%clk 0:02:59.9]} 3... Be7 {[%clk 0:02:59.4]}
4. Nc3 {[%clk 0:03:00.5]} 4... Bg5 {[%clk 0:02:59.2]} 5. e3 {[%clk 0:03:00.5]}
5... f5 {[%clk 0:02:59.3]} 6. Nf3 {[%clk 0:03:00]} 6... Bh6 {[%clk 0:02:59.4]}
7. Be2 {[%clk 0:02:57.9]} 7... Nf6 {[%clk 0:02:59.4]} 8. h4 {[%clk 0:02:57.2]}
8... O-O {[%clk 0:02:58.8]} 9. Ng5 {[%clk 0:02:56.8]} 9... a5 {[%clk 0:02:57.6]}
10. e4 {[%clk 0:02:55.3]} 10... f4 {[%clk 0:02:55.3]} 11. g3 {[%clk 0:02:41.9]}
11... Na6 {[%clk 0:02:50]} 12. gxf4 {[%clk 0:02:41.1]} 12... exf4 {[%clk
0:02:50.9]} 13. Rg1 {[%clk 0:02:32.5]} 13... Nc5 {[%clk 0:02:49.2]} 14. Bf3
{[%clk 0:02:27.1]} 14... Nfd7 {[%clk 0:02:46.3]} 15. Nb5 {[%clk 0:01:48.8]}
15... Ne5 {[%clk 0:02:42.5]} 16. Nd4 {[%clk 0:01:48.6]} 16... Qf6 {[%clk
0:02:36.7]} 17. Nde6 {[%clk 0:01:34.3]} 17... Nxe6 {[%clk 0:02:34.5]} 18. dxe6
{[%clk 0:01:30.4]} 18... Bxe6 {[%clk 0:02:32.9]} 19. Nxe6 {[%clk 0:01:29.6]}
19... Qxe6 {[%clk 0:02:33.8]} 20. b3 {[%clk 0:01:27]} 20... Qf6 {[%clk
0:02:31.8]} 21. Rb1 {[%clk 0:01:25.1]} 21... Qxh4 {[%clk 0:02:27.9]} 22. Bb2
{[%clk 0:01:24.4]} 22... Qe7 {[%clk 0:02:21.9]} 23. Kf1 {[%clk 0:01:23.6]} 23...
Kh8 {[%clk 0:02:17.1]} 24. Qd5 {[%clk 0:01:21.9]} 24... c6 {[%clk 0:02:16.1]}
25. Qd1 {[%clk 0:01:21.5]} 25... Bg5 {[%clk 0:02:09.8]} 26. Qe2 {[%clk
0:01:07.7]} 26... Bf6 {[%clk 0:02:09.1]} 27. Rd1 {[%clk 0:01:07.1]} 27... Nxf3
{[%clk 0:02:04.1]} 28. Bxf6 {[%clk 0:01:06.4]} 28... Nh2+ {[%clk 0:02:00.3]} 29.
Ke1 {[%clk 0:00:53.3]} 29... Rxf6 {[%clk 0:01:59.2]} 30. Qh5 {[%clk 0:00:48.8]}
30... Qxe4+ {[%clk 0:01:54.3]} 31. Kd2 {[%clk 0:00:48]} 31... Nf3+ {[%clk
0:01:54]} 32. Kc1 {[%clk 0:00:47.8]} 32... Nxg1 {[%clk 0:01:52.9]} 33. Rxg1
{[%clk 0:00:47.6]} 33... Qe5 {[%clk 0:01:48]} 34. Qg4 {[%clk 0:00:46.3]} 34...
Rg6 {[%clk 0:01:47.5]} 0-1

[Event "*** SCC Grand Prix: Titled Tuesday Blitz"]
[Site "Chess.com"]
[Date "2020.10.06"]
[Round "1"]
[White "MasterSonnevanck23"]
[Black "Witik"]
[Result "0-1"]
[WhiteElo "2369"]
[BlackElo "2707"]
[TimeControl "180+1"]
[EndTime "10:04:53 PDT"]
[Termination "Witik won by resignation"]

1. c4 {[%clk 0:02:59.7]} 1... e5 {[%clk 0:02:53.9]} 2. Nc3 {[%clk 0:02:58.8]}
2... Bb4 {[%clk 0:02:53.2]} 3. Qc2 {[%clk 0:02:54.7]} 3... c6 {[%clk 0:02:53]}
4. a3 {[%clk 0:02:45.9]} 4... Ba5 {[%clk 0:02:52.7]} 5. b4 {[%clk 0:02:44]} 5...
Bc7 {[%clk 0:02:52.8]} 6. e3 {[%clk 0:02:41.3]} 6... Nf6 {[%clk 0:02:50.7]} 7.
d4 {[%clk 0:02:39.6]} 7... exd4 {[%clk 0:02:46.5]} 8. exd4 {[%clk 0:02:38.5]}
8... O-O {[%clk 0:02:47.4]} 9. Nf3 {[%clk 0:02:34.6]} 9... d5 {[%clk 0:02:47.3]}
10. c5 {[%clk 0:02:33.3]} 10... Re8+ {[%clk 0:02:29.6]} 11. Be2 {[%clk
0:02:32.1]} 11... Ne4 {[%clk 0:02:28.8]} 12. O-O {[%clk 0:02:26.4]} 12... Nxc3
{[%clk 0:02:26.9]} 13. Qxc3 {[%clk 0:02:25.6]} 13... Rxe2 {[%clk 0:02:26.5]} 14.
Be3 {[%clk 0:02:22.6]} 14... b6 {[%clk 0:02:18.6]} 15. Ne5 {[%clk 0:02:19.6]}
15... bxc5 {[%clk 0:02:12.6]} 16. bxc5 {[%clk 0:02:04.1]} 16... Ba6 {[%clk
0:02:06.6]} 17. Rfb1 {[%clk 0:02:00.2]} 17... Bxe5 {[%clk 0:02:03.5]} 18. dxe5
{[%clk 0:01:58.6]} 18... Nd7 {[%clk 0:02:03.6]} 19. Qd4 {[%clk 0:01:53.9]} 19...
Nf8 {[%clk 0:01:59.2]} 20. Qg4 {[%clk 0:01:48.1]} 20... Ne6 {[%clk 0:01:54.8]}
21. h4 {[%clk 0:01:42.1]} 21... d4 {[%clk 0:01:54.2]} 22. Bg5 {[%clk 0:01:41.8]}
22... Qd5 {[%clk 0:01:52.7]} 23. Bf6 {[%clk 0:01:31.6]} 23... Kh8 {[%clk
0:01:49.6]} 24. Rb4 {[%clk 0:01:27.3]} 24... gxf6 {[%clk 0:01:43.9]} 25. Rab1
{[%clk 0:01:27.3]} 25... Rg8 {[%clk 0:01:39.5]} 26. Rb8 {[%clk 0:01:26.8]} 26...
Bc8 {[%clk 0:01:34.1]} 27. Rxc8 {[%clk 0:01:19]} 27... Rxc8 {[%clk 0:01:33.1]}
28. Qxe2 {[%clk 0:01:18.3]} 28... fxe5 {[%clk 0:01:29.4]} 29. Rb7 {[%clk
0:01:10.3]} 29... Nf4 {[%clk 0:01:23.9]} 0-1

[Event "*** SCC Grand Prix: Titled Tuesday Blitz"]
[Site "Chess.com"]
[Date "2020.10.06"]
[Round "1"]
[White "Das_Virus_2020"]
[Black "AvitalBor"]
[Result "0-1"]
[WhiteElo "2395"]
[BlackElo "2753"]
[TimeControl "180+1"]
[EndTime "10:05:03 PDT"]
[Termination "AvitalBor won by resignation"]

1. e4 {[%clk 0:02:59.9]} 1... e5 {[%clk 0:02:59.2]} 2. Nf3 {[%clk 0:02:58.1]}
2... Nc6 {[%clk 0:03:00.1]} 3. Bc4 {[%clk 0:02:57.7]} 3... Bc5 {[%clk
0:02:58.2]} 4. c3 {[%clk 0:02:57.4]} 4... Nf6 {[%clk 0:02:56.9]} 5. d3 {[%clk
0:02:57.3]} 5... d6 {[%clk 0:02:56.6]} 6. a4 {[%clk 0:02:57]} 6... a6 {[%clk
0:02:55.1]} 7. h3 {[%clk 0:02:57.2]} 7... Ba7 {[%clk 0:02:52.4]} 8. Nbd2 {[%clk
0:02:55.1]} 8... O-O {[%clk 0:02:50.4]} 9. O-O {[%clk 0:02:54.4]} 9... Ne7
{[%clk 0:02:50.5]} 10. Re1 {[%clk 0:02:53.6]} 10... Ng6 {[%clk 0:02:50.1]} 11.
Nf1 {[%clk 0:02:53.3]} 11... c6 {[%clk 0:02:46.7]} 12. Bb3 {[%clk 0:02:51.1]}
12... Re8 {[%clk 0:02:45.4]} 13. Be3 {[%clk 0:02:38.4]} 13... Bxe3 {[%clk
0:02:42.7]} 14. fxe3 {[%clk 0:02:38.2]} 14... d5 {[%clk 0:02:42]} 15. exd5
{[%clk 0:02:35.7]} 15... cxd5 {[%clk 0:02:42.1]} 16. e4 {[%clk 0:02:30.3]} 16...
Qb6+ {[%clk 0:02:33.4]} 17. Kh2 {[%clk 0:02:22.7]} 17... Nf4 {[%clk 0:02:06.7]}
18. d4 {[%clk 0:01:59.2]} 18... exd4 {[%clk 0:01:58.2]} 19. e5 {[%clk
0:01:54.7]} 19... Ne4 {[%clk 0:01:53.6]} 20. cxd4 {[%clk 0:01:46.8]} 20... Qg6
{[%clk 0:01:52.3]} 21. Qc2 {[%clk 0:01:00.2]} 21... Bxh3 {[%clk 0:01:29.4]} 22.
gxh3 {[%clk 0:00:53.2]} 22... Rac8 {[%clk 0:01:24.4]} 0-1

[Event "*** SCC Grand Prix: Titled Tuesday Blitz"]
[Site "Chess.com"]
[Date "2020.10.06"]
[Round "1"]
[White "alejanchess73"]
[Black "kuban1991"]
[Result "0-1"]
[WhiteElo "2433"]
[BlackElo "2832"]
[TimeControl "180+1"]
[EndTime "10:05:21 PDT"]
[Termination "kuban1991 won by resignation"]

1. d4 {[%clk 0:03:00.5]} 1... g6 {[%clk 0:03:00]} 2. c4 {[%clk 0:02:56.8]} 2...
Bg7 {[%clk 0:03:00.3]} 3. Nf3 {[%clk 0:02:57]} 3... c5 {[%clk 0:03:00.3]} 4. d5
{[%clk 0:02:55.8]} 4... d6 {[%clk 0:03:00.2]} 5. g3 {[%clk 0:02:56.3]} 5... f5
{[%clk 0:02:58.5]} 6. Bg2 {[%clk 0:02:56.4]} 6... Nf6 {[%clk 0:02:57.3]} 7. O-O
{[%clk 0:02:56.8]} 7... O-O {[%clk 0:02:57.6]} 8. Nc3 {[%clk 0:02:56.8]} 8...
Na6 {[%clk 0:02:53.4]} 9. Rb1 {[%clk 0:02:56.3]} 9... h6 {[%clk 0:02:52.1]} 10.
a3 {[%clk 0:02:56.4]} 10... Nc7 {[%clk 0:02:47.8]} 11. b4 {[%clk 0:02:54.2]}
11... b6 {[%clk 0:02:47.9]} 12. Bb2 {[%clk 0:02:51.4]} 12... g5 {[%clk 0:02:43]}
13. Ne1 {[%clk 0:02:48.1]} 13... Qe8 {[%clk 0:02:40.7]} 14. b5 {[%clk
0:02:42.3]} 14... f4 {[%clk 0:02:33.5]} 15. a4 {[%clk 0:02:41.9]} 15... a5
{[%clk 0:02:28.5]} 16. bxa6 {[%clk 0:02:38.9]} 16... Rxa6 {[%clk 0:02:28.7]} 17.
Nb5 {[%clk 0:02:38.3]} 17... Nxb5 {[%clk 0:02:28.1]} 18. axb5 {[%clk 0:02:39]}
18... Ra8 {[%clk 0:02:24.2]} 19. Ra1 {[%clk 0:02:38.3]} 19... Bg4 {[%clk
0:02:21.7]} 20. f3 {[%clk 0:02:30.9]} 20... Bf5 {[%clk 0:02:20.9]} 21. g4 {[%clk
0:02:29.3]} 21... Bg6 {[%clk 0:02:18]} 22. Nd3 {[%clk 0:02:25.5]} 22... Nd7
{[%clk 0:02:02.5]} 23. Bxg7 {[%clk 0:02:21]} 23... Kxg7 {[%clk 0:02:03.4]} 24.
Qb3 {[%clk 0:02:12.2]} 24... Bxd3 {[%clk 0:01:58.5]} 25. exd3 {[%clk 0:02:08.7]}
25... Ne5 {[%clk 0:01:58.6]} 26. Qc3 {[%clk 0:02:02.5]} 26... Qg6 {[%clk
0:01:57.3]} 27. d4 {[%clk 0:02:00.1]} 27... cxd4 {[%clk 0:01:56.3]} 28. Qxd4
{[%clk 0:02:00.2]} 28... Rxa1 {[%clk 0:01:46.3]} 29. Rxa1 {[%clk 0:01:59]} 29...
Rc8 {[%clk 0:01:47]} 30. Qxb6 {[%clk 0:01:56.4]} 30... Rxc4 {[%clk 0:01:45.9]}
31. Qa7 {[%clk 0:01:51]} 31... Kf7 {[%clk 0:01:36]} 32. b6 {[%clk 0:01:50.6]}
32... Rb4 {[%clk 0:01:17]} 33. Rf1 {[%clk 0:01:34.2]} 33... Qc2 {[%clk
0:01:14.3]} 34. Rf2 {[%clk 0:01:27.1]} 34... Qc5 {[%clk 0:01:12.5]} 35. Qa8
{[%clk 0:01:21.4]} 35... Rb1+ {[%clk 0:01:11]} 36. Bf1 {[%clk 0:01:20.7]} 36...
Rb2 {[%clk 0:01:06.7]} 0-1